bitfinex-derivatives/quotes_BNBF0:USTF0_20250309
["timestamp","ask_amount","ask_price","bid_price","bid_amount"]
[1741554468796,2.86521285,559.16,559.06,0.35774335]
[1741554468995,2.86521285,559.15,559.06,0.35774335]
[1741554469196,2.86550216,559.14,559.06,0.35774335]
[1741554469396,3.63347208,559.16,559.06,0.35774335]
[1741554469601,1.39760172,559.13,559.06,0.35774335]
[1741554470208,1.39760172,559.12,559.06,0.35774335]
[1741554470405,1.07745231,559.11,559.06,0.35774335]
[1741554470607,2.86572298,559.1,559.06,0.35774335]
[1741554470802,1.39760172,559.1,559.06,0.35774335]
[1741554471008,0.3113481,559.24,559.06,0.35774335]
[1741554471009,1.39760172,559.09,559.06,0.35774335]
[1741554471605,1.39760172,559.08,559.06,0.35774335]
[1741554472206,2.86630938,559.07,559.06,0.35774335]
[1741554472405,4.2639111,559.07,559.06,0.35774335]
[1741554473108,1.39760172,559.07,559.06,0.35774335]
[1741554474903,4.26367534,559.07,559.06,0.35774335]
[1741554475509,4.57510285,559.07,559.06,0.35774335]
[1741554475706,3.17745861,559.07,559.06,0.35774335]
[1741554475905,6.81398224,559.07,559.06,0.35774335]
[1741554477606,6.81407422,559.07,559.06,0.35774335]
[1741554478209,6.50264671,559.07,559.06,0.35774335]
[1741554478712,6.81406447,559.07,559.06,0.35774335]
[1741554480414,3.94794139,559.07,559.06,0.35774335]
[1741554480814,5.73625247,559.07,559.06,0.35774335]
[1741554481017,6.81423877,559.07,559.06,0.35774335]
[1741554481315,6.50282101,559.07,559.06,0.35774335]
[1741554481516,6.81419418,559.07,559.06,0.35774335]
[1741554482915,6.81424685,559.07,559.06,0.35774335]
[1741554484213,6.50287368,559.07,559.06,0.35774335]
[1741554484413,6.81425939,559.07,559.06,0.35774335]
[1741554484810,6.8142232,559.07,559.06,0.35774335]
[1741554485414,9.67563839,559.07,559.06,0.35774335]
[1741554485716,11.40436145,559.07,559.06,0.35774335]
[1741554487223,11.09297574,559.07,559.06,0.35774335]
[1741554488520,11.40436842,559.07,559.06,0.35774335]
[1741554488718,11.4075926,559.07,559.06,0.35774335]
[1741554490324,11.09619992,559.07,559.06,0.35774335]
[1741554490622,7.45982736,559.07,559.06,0.35774335]
[1741554490823,11.10599864,559.07,559.06,0.35774335]
[1741554491618,11.41739968,559.07,559.06,0.35774335]
[1741554492624,11.41730683,559.07,559.06,0.35774335]
[1741554493326,11.10590579,559.07,559.06,0.35774335]
[1741554493520,11.41730543,559.07,558.35,1.32493722]
[1741554493718,7.45973451,559.06,558.36,0.29676091]
[1741554493926,7.45973451,559.06,558.35,1.32493722]
[1741554493927,7.45973451,559.05,558.37,0.29676091]
[1741554494225,7.45973451,559.05,558.35,1.32493722]
[1741554494226,7.45973451,559.04,558.38,0.29676091]
[1741554494418,7.45973451,559.03,558.35,1.32493722]
[1741554494620,7.45973451,559.02,558.51,1.32493722]
[1741554494821,5.73054464,559.01,558.52,0.29676127]
[1741554495122,6.51529994,559.0,558.52,0.29676127]
[1741554495327,2.86912866,558.99,558.52,0.29676127]
[1741554495528,6.51529994,558.98,558.52,0.29676127]
[1741554495822,1.78838499,558.97,558.52,0.29676127]
[1741554496027,1.40237357,558.96,558.52,0.29676127]
[1741554496624,2.87055241,558.95,558.52,0.29676127]
[1741554496827,3.19079805,558.94,558.57,1.32493722]
[1741554497130,1.40237357,558.94,558.58,0.29676127]
[1741554497431,1.71376067,558.93,558.57,1.32493722]
[1741554497629,1.71376067,558.93,558.58,0.29675856]
[1741554497929,1.40237357,558.92,558.58,0.29675856]
[1741554498529,1.40237357,558.91,558.58,0.29675856]
[1741554499125,1.40237357,558.91,558.52,0.29675856]
[1741554499332,1.40237357,558.9,558.53,0.29675856]
[1741554499531,1.71377321,558.9,558.52,0.29675856]
[1741554499732,0.31139964,558.9,558.52,0.29675856]
[1741554500232,1.393,558.89,558.52,0.29675856]
[1741554501532,1.393,558.89,558.44,0.29675856]
[1741554501731,1.393,558.89,558.45,0.29675856]
[1741554501927,1.393,558.89,558.43,1.32493722]
[1741554501928,1.393,558.89,558.44,0.29675856]
[1741554502129,1.393,558.89,558.45,0.29675856]
[1741554502325,1.393,558.89,558.44,0.29675856]
[1741554502527,1.393,558.89,558.45,0.29675856]
[1741554502831,1.393,558.89,558.46,0.29675856]
[1741554503032,1.393,558.89,558.44,0.29675856]
[1741554503229,1.393,558.89,558.45,0.29675856]
[1741554503432,1.393,558.89,558.46,0.29675856]
[1741554503629,1.393,558.89,558.39,1.32493722]
[1741554503834,1.393,558.89,558.4,0.29675375]
[1741554505834,1.393,558.89,558.47,1.32493722]
[1741554506035,1.393,558.89,558.48,0.29675375]
[1741554507540,1.393,558.89,558.49,1.32493722]
[1741554507734,1.393,558.89,558.5,0.29675375]
[1741554510742,1.393,558.89,558.32,1.58992467]
[1741554510743,1.393,558.89,558.58,1.32493722]
[1741554510942,1.393,558.89,558.59,0.29679621]
[1741554511641,1.393,558.89,558.58,1.32493722]
[1741554511842,1.393,558.89,558.59,0.29679682]
[1741554512740,1.393,558.89,558.53,1.32493722]
[1741554513040,1.393,558.89,558.54,0.29679477]
[1741554514641,0.31141358,558.88,558.54,0.29679477]
[1741554516038,0.31141358,558.88,558.38,0.29679477]
[1741554516244,0.31141358,558.88,558.39,0.65496737]
[1741554516544,0.31141358,558.88,558.4,0.65496095]
[1741554516744,0.31141358,558.88,558.41,0.65495454]
[1741554516943,0.31141358,558.88,558.42,0.65494813]
[1741554517143,1.393,558.89,558.43,0.65494171]
[1741554517444,1.393,558.89,558.44,0.6549353]
[1741554517445,0.31144284,558.87,558.44,0.6549353]
[1741554517645,0.31144284,558.87,558.45,0.65492889]
[1741554517845,0.31144284,558.87,558.46,0.65492247]
[1741554518043,0.31144284,558.87,558.47,0.65491606]
[1741554518244,0.31144284,558.87,558.48,0.65494684]
[1741554518438,0.31144284,558.87,558.49,0.65494043]
[1741554518643,0.31144284,558.87,558.5,0.65493401]
[1741554518844,1.39673945,558.86,558.51,0.35809564]
[1741554519640,1.39673945,558.85,558.51,0.35809564]
[1741554520042,0.31144284,558.87,558.51,0.35809564]
[1741554520243,0.287,558.95,558.51,0.35809564]
[1741554520443,2.86812658,558.94,558.51,0.35809564]
[1741554520647,2.86812697,558.93,558.51,0.35809564]
[1741554520848,3.62825273,558.94,558.51,0.35809564]
[1741554521048,2.86814512,558.93,558.51,0.35809564]
[1741554521249,3.62825273,558.94,558.51,0.35809564]
[1741554521450,0.31145678,558.93,558.51,0.35809564]
[1741554521650,1.7069386,558.93,558.51,0.35809564]
[1741554522149,3.18433608,558.92,558.51,0.35809564]
[1741554522349,1.78885426,558.91,558.51,0.35809564]
[1741554522547,1.78885426,558.9,558.51,0.35809564]
[1741554522742,1.39548182,558.92,558.51,0.35809564]
[1741554522943,1.39548182,558.89,558.51,0.35809564]
[1741554523349,1.39548182,558.88,558.51,0.35809564]
[1741554523749,1.39548182,558.87,558.51,0.35809564]
[1741554524250,1.39548182,558.86,558.51,0.35809564]
[1741554524450,1.39548182,558.85,558.51,0.35809564]
[1741554525047,1.39548182,558.84,558.51,0.35809564]
[1741554525751,1.39548182,558.83,558.51,0.35809564]
[1741554526449,4.58627204,559.07,558.51,0.35809564]
[1741554526746,7.45249457,559.06,558.51,0.35809564]
[1741554526945,7.45249457,559.05,558.51,0.35809564]
[1741554527150,7.45249457,559.04,558.51,0.35809564]
[1741554527351,7.45249457,559.03,558.51,0.35809564]
[1741554527552,7.45249457,559.02,558.51,0.35809564]
[1741554527755,7.45249457,559.01,558.51,0.35809564]
[1741554528053,7.45233457,559.0,558.51,0.35809564]
[1741554528253,5.72851556,558.99,558.51,0.35809564]
[1741554528454,6.48809731,558.98,558.51,0.35809564]
[1741554528654,2.86622253,558.97,558.51,0.35809564]
[1741554528853,2.86622253,558.96,558.51,0.35809564]
[1741554529052,2.86640296,558.95,558.51,0.35809564]
[1741554529255,2.86640296,558.94,558.51,0.35809564]
[1741554529449,2.86640296,558.93,558.51,0.35809564]
[1741554529650,2.86599112,558.92,558.51,0.35809564]
[1741554529852,2.86599112,558.91,558.51,0.35809564]
[1741554530048,2.86599112,558.9,558.51,0.35809564]
[1741554530250,11.07337222,558.89,558.51,0.35809564]
[1741554530450,7.45149744,558.88,558.51,0.35809564]
[1741554530655,7.45149744,558.87,558.51,0.35809564]
[1741554530857,7.45149744,558.86,558.51,0.35809564]
[1741554531056,3.62187478,558.87,558.51,0.35809564]
[1741554531057,7.45149744,558.85,558.51,0.35809564]
[1741554531256,7.45149744,558.84,558.51,0.35809564]
[1741554531451,2.79991479,558.83,558.51,0.35809564]
[1741554531655,2.86648884,558.82,558.51,0.35809564]
[1741554531956,2.86648884,558.81,558.51,0.35809564]
[1741554532162,2.86648884,558.8,558.51,0.35809564]
[1741554532356,0.31154461,558.94,558.51,0.35809564]
[1741554532357,2.86648884,558.79,558.51,0.35809564]
[1741554532657,2.86648884,558.78,558.51,0.35809564]
[1741554532848,2.86648884,558.77,558.51,0.35809564]
[1741554533061,1.78941648,558.76,558.51,0.35809564]
[1741554533250,3.62187478,558.78,558.51,0.35809564]
[1741554533455,1.39302876,558.76,558.51,0.35809564]
[1741554534059,1.39302876,558.75,558.51,0.35809564]
[1741554534454,1.39302876,558.74,558.51,0.35809564]
[1741554534953,1.39302876,558.73,558.51,0.35809564]
[1741554535462,4.58407091,558.86,558.51,0.35809564]
[1741554535661,0.287,559.0,558.51,0.35809564]
[1741554535662,2.86445294,558.85,558.51,0.35809564]
[1741554535857,6.47883742,558.84,558.51,0.35809564]
[1741554536054,2.86445294,558.83,558.51,0.35809564]
[1741554536362,6.47883742,558.82,558.51,0.35809564]
[1741554536560,2.86445294,558.81,558.51,0.35809564]
[1741554536759,2.86445294,558.8,558.51,0.35809564]
[1741554536960,2.86445294,558.79,558.51,0.35809564]
[1741554537160,1.39014788,558.78,558.51,0.35809564]
[1741554537862,1.39014788,558.77,558.51,0.35809564]
[1741554538563,1.042,558.85,558.51,0.35809564]
[1741554538764,6.47542451,558.84,558.51,0.35809564]
[1741554539064,2.86370585,558.83,558.51,0.35809564]
[1741554539265,3.61171866,558.84,558.51,0.35809564]
[1741554539462,1.70069506,558.82,558.51,0.35809564]
[1741554540062,1.38912256,558.81,558.51,0.35809564]
[1741554540765,1.38912256,558.8,558.51,0.35809564]
[1741554541065,1.38912256,558.79,558.51,0.35809564]
[1741554541563,1.38912256,558.78,558.51,0.35809564]
[1741554542264,1.38912256,558.77,558.51,0.35809564]
[1741554542462,1.70070482,558.77,558.51,0.35809564]
[1741554542865,0.31158226,558.77,558.51,0.35809564]
[1741554544263,1.329,558.85,558.51,0.35809564]
[1741554544566,0.31157111,558.76,558.51,0.35809564]
[1741554544965,2.8638875,558.84,558.51,0.35809564]
[1741554545164,1.329,558.85,558.51,0.35809564]
[1741554545462,5.08672743,558.84,558.51,0.35809564]
[1741554545666,6.47600855,558.83,558.51,0.35809564]
[1741554545862,2.86376091,558.82,558.51,0.35809564]
[1741554546161,7.4457836,558.81,558.51,0.35809564]
[1741554546367,7.98275946,558.8,558.51,0.35809564]
[1741554546569,7.98275946,558.79,558.51,0.35809564]
[1741554546763,7.98275946,558.78,558.51,0.35809564]
[1741554547062,7.98275946,558.77,558.51,0.35809564]
[1741554547367,3.61224764,558.78,558.51,0.35809564]
[1741554547368,7.98275946,558.76,558.51,0.35809564]
[1741554547564,11.5950071,558.75,558.51,0.35809564]
[1741554547760,7.98275946,558.74,558.51,0.35809564]
[1741554547960,7.98275946,558.73,558.04,1.32493722]
[1741554548166,7.98275946,558.72,558.05,0.65551294]
[1741554548361,7.98275946,558.71,558.06,0.3583844]
[1741554548667,11.5950071,558.7,558.07,0.29712851]
[1741554548868,7.98275946,558.69,558.08,0.35837155]
[1741554549065,7.4457836,558.68,558.09,0.29710976]
[1741554549266,7.4457836,558.67,558.09,0.29710976]
[1741554549466,7.4457836,558.66,558.1,0.35835871]
[1741554549663,7.4457836,558.65,558.1,0.35835871]
[1741554549868,7.4457836,558.64,558.11,0.29710976]
[1741554550068,7.44767958,558.63,558.12,0.35834587]
[1741554550266,8.8298746,558.62,558.12,0.35834587]
[1741554550470,2.86176672,558.61,558.12,0.35834587]
[1741554550664,2.86176672,558.6,558.12,0.35834587]
[1741554550867,2.86176672,558.59,558.12,0.35834587]
[1741554551067,2.86176672,558.58,558.12,0.35834587]
[1741554551371,1.38928112,558.57,558.12,0.35834587]
[1741554552163,1.38928112,558.56,558.12,0.35834587]
[1741554552762,1.38928112,558.55,558.12,0.35834587]
[1741554553167,7.97595473,558.8,558.12,0.35834587]
[1741554553168,7.97595473,558.79,558.12,0.35834587]
[1741554553371,7.97595473,558.78,558.12,0.35834587]
[1741554553566,7.43887614,558.77,558.12,0.35834587]
[1741554553769,2.86111809,558.76,558.12,0.35834587]
[1741554553969,2.86111809,558.75,558.12,0.35834587]
[1741554554164,2.86111809,558.74,558.12,0.35834587]
[1741554554373,2.86111809,558.73,558.12,0.35834587]
[1741554554671,0.31170785,558.74,558.13,0.2970288]
[1741554554972,1.38440686,558.72,558.14,0.35833303]
[1741554555472,1.38440686,558.71,558.14,0.35833303]
[1741554555872,1.38440686,558.7,558.14,0.35833303]
[1741554556474,1.38440686,558.69,558.14,0.35833303]
[1741554556875,1.38440686,558.68,558.14,0.35833303]
[1741554557678,1.38440686,558.67,558.14,0.35833303]
[1741554558272,0.31170785,558.74,558.14,0.35833303]
[1741554558872,1.3841589,558.73,558.14,0.35833303]
[1741554559279,1.3841589,558.73,558.15,0.29702952]
[1741554559476,1.3841589,558.72,558.15,0.29702952]
[1741554559775,1.3841589,558.72,558.16,0.35832019]
[1741554560181,1.3841589,558.71,558.16,0.35832019]
[1741554560680,5.38933758,558.7,558.16,0.35832019]
[1741554560875,2.86035474,558.69,558.16,0.35832019]
[1741554561074,2.86035474,558.68,558.16,0.35832019]
[1741554561275,2.86035474,558.67,558.16,0.35832019]
[1741554561580,6.45982705,558.66,558.16,0.35832019]
[1741554561874,2.86035474,558.65,558.16,0.35832019]
[1741554562080,2.86066202,558.64,558.16,0.35832019]
[1741554562282,2.86066202,558.63,558.16,0.35832019]
[1741554562479,2.86066202,558.62,558.16,0.35832019]
[1741554562779,4.24482092,558.61,558.16,0.35832019]
[1741554562980,1.3841589,558.61,558.16,0.35832019]
[1741554563376,1.3841589,558.6,558.16,0.35832019]
[1741554563974,1.3841589,558.59,558.16,0.35832019]
[1741554564676,1.6711589,558.58,558.16,0.35832019]
[1741554565279,1.3841589,558.57,558.16,0.35832019]
[1741554565682,1.3841589,558.56,558.16,0.35832019]
[1741554566582,0.31174695,558.55,558.16,0.35832019]
[1741554566775,1.69590585,558.55,558.16,0.35832019]
[1741554567181,6.4595115,558.54,558.16,0.35832019]
[1741554567376,2.86081653,558.53,558.16,0.35832019]
[1741554567675,2.86081653,558.52,558.16,0.35832019]
[1741554567883,7.43800779,558.51,558.16,0.35832019]
[1741554568181,7.43800779,558.5,558.16,0.35832019]
[1741554568377,2.86081653,558.49,558.16,0.35832019]
[1741554568582,2.86081653,558.48,558.16,0.35832019]
[1741554568783,2.86081653,558.47,558.16,0.35832019]
[1741554568979,6.4595115,558.46,558.16,0.35832019]
[1741554569285,6.4595115,558.45,558.16,0.35832019]
[1741554569484,3.59869497,558.45,558.16,0.35832019]
[1741554570080,1.3841589,558.44,558.16,0.35832019]
[1741554570881,1.3841589,558.43,558.16,0.35832019]
[1741554571282,1.3841589,558.42,558.16,0.35832019]
[1741554571477,1.6959673,558.42,558.16,0.35832019]
[1741554572077,1.3841589,558.41,558.16,0.35832019]
[1741554572777,1.3841589,558.4,558.16,0.35832019]
[1741554573380,1.3841589,558.39,558.16,0.35832019]
[1741554573985,1.3841589,558.38,558.16,0.35832019]
[1741554574382,0.971,558.48,558.16,0.35832019]
[1741554574383,5.07369513,558.47,558.16,0.35832019]
[1741554574586,0.31182377,558.37,558.16,0.35832019]
[1741554574884,3.28300434,558.45,558.16,0.35832019]
[1741554575087,2.21323033,558.45,558.16,0.35832019]
[1741554575488,0.31181538,558.44,558.16,0.35832019]
[1741554575780,3.90851943,558.44,558.16,0.35832019]
[1741554576283,4.24411742,558.43,558.16,0.35832019]
[1741554576485,2.8606437,558.42,558.16,0.35832019]
[1741554576683,2.8606437,558.41,558.16,0.35832019]
[1741554576885,2.8606437,558.4,558.16,0.35832019]
[1741554577186,2.8606437,558.39,558.16,0.35832019]
[1741554577384,1.06986379,558.38,558.16,0.35832019]
[1741554577580,0.3118559,558.39,558.16,0.35832019]
[1741554577786,3.59638692,558.37,558.16,0.35832019]
[1741554578287,0.3118559,558.39,558.16,0.35832019]
[1741554578785,1.38314819,558.38,558.16,0.35832019]
[1741554579384,0.3118559,558.39,558.16,0.35832019]
[1741554580281,0.971,558.48,558.16,0.35832019]
[1741554581687,0.31177208,558.47,558.16,0.35832019]
[1741554583383,1.38439499,558.46,558.16,0.35832019]
[1741554583982,1.38439499,558.45,558.16,0.35832019]
[1741554584584,0.31177208,558.47,558.16,0.35832019]
[1741554584585,1.38439499,558.44,558.16,0.35832019]
[1741554584982,0.31177208,558.47,558.16,0.35832019]
[1741554585589,1.38504385,558.46,558.16,0.35832019]
[1741554586289,1.38504385,558.45,558.16,0.35832019]
[1741554586784,1.38504385,558.44,558.16,0.35832019]
[1741554587289,0.31177208,558.47,558.16,0.35832019]
[1741554587794,1.38599041,558.46,558.16,0.35832019]
[1741554588291,1.38599041,558.45,558.16,0.35832019]
[1741554588692,0.31177208,558.47,558.16,0.35832019]
[1741554589485,1.69866555,558.46,558.16,0.35832019]
[1741554590385,1.38688648,558.45,558.16,0.35832019]
[1741554590889,0.31177907,558.46,558.16,0.35832019]
[1741554591990,1.38786046,558.45,558.16,0.35832019]
[1741554592490,0.971,558.48,558.16,0.35832019]
[1741554592686,0.31176789,558.44,558.16,0.35832019]
[1741554595385,0.971,558.48,558.16,0.35832019]
[1741554595586,0.31178046,558.43,558.16,0.35832019]
[1741554598392,0.971,558.48,558.16,0.35832019]
[1741554599586,0.31172182,558.47,558.16,0.35832019]
[1741554601296,0.971,558.48,558.17,0.29706206]
[1741554601497,0.971,558.48,558.18,0.35830735]
[1741554601696,0.31172182,558.46,558.19,0.29707196]
[1741554601896,0.31172182,558.46,558.2,0.35829451]
[1741554604301,5.12461024,558.78,558.21,0.2970671]
[1741554604500,0.31167715,558.45,558.22,0.35828168]
[1741554604698,5.12461024,558.76,558.22,0.35828168]
[1741554604899,7.99221931,558.75,558.22,0.35828168]
[1741554605094,7.99221931,558.74,558.22,0.35828168]
[1741554605293,11.61604014,558.73,558.22,0.35828168]
[1741554605492,7.99221931,558.72,558.22,0.35828168]
[1741554605697,7.99221931,558.71,558.22,0.35828168]
[1741554605897,7.99221931,558.7,558.22,0.35828168]
[1741554606193,7.99448688,558.69,558.22,0.35828168]
[1741554606491,11.61830771,558.68,558.22,0.35828168]
[1741554606696,7.99448688,558.67,558.22,0.35828168]
[1741554606897,7.4574689,558.66,558.22,0.35828168]
[1741554607202,11.08128973,558.65,558.23,0.29706764]
[1741554607401,7.4574689,558.64,558.24,0.35826884]
[1741554607701,11.08128973,558.63,558.24,0.35826884]
[1741554608002,6.4920781,558.62,558.25,0.29705877]
[1741554608202,3.62382083,558.62,558.26,0.358256]
[1741554608402,3.62382083,558.62,558.27,0.29705877]
[1741554608697,3.62382083,558.62,558.28,0.65524735]
[1741554609001,1.39377724,558.61,558.29,0.65524093]
[1741554609202,1.094,558.63,558.3,0.65523452]
[1741554609400,1.094,558.63,558.31,0.6552281]
[1741554609601,1.39359087,558.62,558.32,0.3582175]
[1741554610302,1.094,558.63,558.32,0.3582175]
[1741554610803,0.31164226,558.61,558.33,0.29698975]
[1741554611003,0.31164226,558.61,558.34,0.35820467]
[1741554613304,1.094,558.63,558.34,0.35820467]
[1741554613504,0.31163947,558.6,558.34,0.35820467]
[1741554616203,1.094,558.63,558.34,0.35820467]
[1741554616602,0.31165063,558.59,558.34,0.35820467]
[1741554619405,1.094,558.63,558.34,0.35820467]
[1741554622013,1.094,558.63,558.35,0.29686422]
[1741554622217,1.094,558.63,558.36,0.35819184]
[1741554622417,1.094,558.63,558.37,0.29686422]
[1741554622609,1.094,558.63,558.38,0.35817901]
[1741554623912,1.094,558.63,558.39,0.29685161]
[1741554624111,1.094,558.63,558.4,0.35816618]
[1741554625013,0.288,558.7,558.4,0.35816618]
[1741554626709,0.31155716,558.69,558.4,0.35816618]
[1741554628313,0.288,558.7,558.4,0.35816618]
[1741554629120,0.31160877,558.69,558.4,0.35816618]
[1741554630319,1.38917309,558.68,558.4,0.35816618]
[1741554630914,0.31160877,558.69,558.4,0.35816618]
[1741554631420,1.356,558.72,558.4,0.35816618]
[1741554631616,0.31165621,558.68,558.4,0.35816618]
[1741554632214,1.38991212,558.67,558.4,0.35816618]
[1741554632613,0.31165621,558.68,558.4,0.35816618]
[1741554633719,2.86524807,558.67,558.4,0.35816618]
[1741554633919,1.3905235,558.67,558.4,0.35816618]
[1741554634324,2.86543808,558.66,558.4,0.35816618]
[1741554634522,2.86551669,558.65,558.4,0.35816618]
[1741554634717,1.3905235,558.65,558.4,0.35816618]
[1741554635116,1.3905235,558.64,558.4,0.35816618]
[1741554635716,3.18057812,558.63,558.4,0.35816618]
[1741554635919,1.3905235,558.63,558.4,0.35816618]
[1741554636119,1.3905235,558.62,558.4,0.35816618]
[1741554636523,1.3905235,558.61,558.4,0.35816618]
[1741554637317,1.3905235,558.6,558.4,0.35816618]
[1741554637923,1.3905235,558.59,558.4,0.35816618]
[1741554638625,0.31171902,558.58,558.4,0.35816618]
[1741554640419,2.86694293,558.69,558.4,0.35816618]
[1741554640618,2.86694293,558.68,558.4,0.35816618]
[1741554640823,2.86694293,558.67,558.4,0.35816618]
[1741554641023,2.86712103,558.66,558.4,0.35816618]
[1741554641223,3.62064459,558.68,558.4,0.35816618]
[1741554641418,0.31169669,558.66,558.4,0.35816618]
[1741554641621,1.79002165,558.65,558.4,0.35816618]
[1741554641825,0.31169669,558.66,558.4,0.35816618]
[1741554642018,1.39262118,558.64,558.4,0.35816618]
[1741554642218,2.86712231,558.63,558.4,0.35816618]
[1741554642419,2.86730406,558.62,558.4,0.35816618]
[1741554642623,2.86730406,558.61,558.4,0.35816618]
[1741554642924,2.86730406,558.6,558.4,0.35816618]
[1741554643128,1.39262118,558.59,558.4,0.35816618]
[1741554643320,2.86726682,558.58,558.4,0.35816618]
[1741554643526,2.86721087,558.57,558.4,0.35816618]
[1741554643825,2.86721087,558.56,558.4,0.35816618]
[1741554644025,1.39262118,558.57,558.4,0.35816618]
[1741554644221,2.86726308,558.56,558.4,0.35816618]
[1741554644426,1.39262118,558.55,558.4,0.35816618]
[1741554645228,1.39262118,558.54,558.4,0.35816618]
[1741554645729,1.39262118,558.53,558.4,0.35816618]
[1741554646127,1.39262118,558.52,558.4,0.35816618]
[1741554646729,1.07705008,558.61,558.4,0.35816618]
[1741554646730,1.70443237,558.51,558.4,0.35816618]
[1741554647232,1.39262118,558.5,558.4,0.35816618]
[1741554647633,1.39262118,558.49,558.4,0.35816618]
[1741554648425,0.31181119,558.51,558.4,0.35816618]
[1741554649328,1.39249058,558.5,558.4,0.35816618]
[1741554649832,1.356,558.72,558.4,0.35816618]
[1741554649833,10.21994532,558.7,558.4,0.35816618]
[1741554650032,7.99197649,558.69,558.4,0.35816618]
[1741554650231,7.99197649,558.68,558.4,0.35816618]
[1741554650428,7.99197649,558.67,558.4,0.35816618]
[1741554650629,7.99197649,558.66,558.4,0.35816618]
[1741554650828,7.45544057,558.65,558.4,0.35816618]
[1741554651032,7.45525489,558.64,558.4,0.35816618]
[1741554651232,7.45525489,558.63,558.4,0.35816618]
[1741554651428,7.45525489,558.62,558.4,0.35816618]
[1741554651731,7.45525489,558.61,558.4,0.35816618]
[1741554651928,3.62067052,558.61,558.4,0.35816618]
[1741554652331,1.39270169,558.61,558.4,0.35816618]
[1741554652529,1.39270169,558.6,558.4,0.35816618]
[1741554653229,0.31175114,558.68,558.4,0.35816618]
[1741554653429,2.86768034,558.67,558.4,0.35816618]
[1741554653633,6.49170953,558.66,558.4,0.35816618]
[1741554653829,2.86768034,558.65,558.4,0.35816618]
[1741554654030,2.86768034,558.64,558.4,0.35816618]
[1741554654232,1.39385738,558.66,558.4,0.35816618]
[1741554654437,1.39385738,558.64,558.4,0.35816618]
[1741554654829,1.39385738,558.63,558.4,0.35816618]
[1741554655234,1.39385738,558.62,558.4,0.35816618]
[1741554655736,1.39385738,558.61,558.4,0.35816618]
[1741554656141,1.39385738,558.6,558.4,0.35816618]
[1741554656740,1.39385738,558.59,558.4,0.35816618]
[1741554657339,1.39385738,558.58,558.4,0.35816618]
[1741554657539,1.39385738,558.57,558.4,0.35816618]
[1741554657938,0.31171204,558.62,558.4,0.35816618]
[1741554658335,1.39503247,558.61,558.4,0.35816618]
[1741554658934,1.39503247,558.6,558.4,0.35816618]
[1741554659438,1.39503247,558.59,558.4,0.35816618]
[1741554660038,1.39503247,558.58,558.4,0.35816618]
[1741554660842,1.39503247,558.57,558.4,0.35816618]
[1741554661441,1.39503247,558.56,558.4,0.35816618]
[1741554661743,1.70676685,558.56,558.4,0.35816618]
[1741554661943,0.31173438,558.56,558.4,0.35816618]
[1741554664348,6.82293881,558.71,558.4,0.35816618]
[1741554664544,7.45928409,558.7,558.4,0.35816618]
[1741554664746,2.86889235,558.69,558.4,0.35816618]
[1741554665040,6.49652488,558.68,558.4,0.35816618]
[1741554665242,7.45899271,558.67,558.4,0.35816618]
[1741554665446,11.62365834,558.66,558.4,0.35816618]
[1741554665746,7.99602581,558.65,558.4,0.35816618]
[1741554665946,11.62365834,558.64,558.4,0.35816618]
[1741554666247,7.99602581,558.63,558.4,0.35816618]
[1741554666447,7.99602581,558.62,558.4,0.35816618]
[1741554666649,7.9960665,558.61,558.4,0.35816618]
[1741554666844,11.62369903,558.6,558.4,0.35816618]
[1741554667147,7.9960665,558.59,557.73,1.32493722]
[1741554667341,7.9960665,558.58,557.74,0.29712113]
[1741554667545,7.99612721,558.57,557.84,1.32493722]
[1741554667742,7.46039513,558.56,557.85,0.65564044]
[1741554667947,7.46039513,558.55,557.86,0.65563401]
[1741554668146,11.08802766,558.54,557.87,0.65562759]
[1741554668449,7.46039513,558.53,557.88,0.65562116]
[1741554668749,7.46039513,558.52,557.89,0.65561473]
[1741554668949,7.46039513,558.51,557.9,0.29712113]
[1741554669151,7.46039513,558.5,557.9,0.29712113]
[1741554669350,2.86947824,558.49,557.91,0.35848075]
[1741554669551,2.86947824,558.48,557.92,0.29712113]
[1741554669751,2.86765776,558.47,557.93,0.3584679]
[1741554669946,2.86765776,558.46,557.94,0.29713347]
[1741554670147,1.79044465,558.45,557.95,0.35845505]
[1741554670350,1.39508546,558.45,557.96,0.29713347]
[1741554670652,1.68308546,558.45,557.97,0.35844221]
[1741554671052,0.288,558.45,557.97,0.35844221]
[1741554671550,0.31174136,558.44,557.97,0.35844221]
[1741554676356,0.288,558.45,557.97,0.35844221]
[1741554676951,1.218,558.45,557.97,0.35844221]
[1741554677557,0.31178046,558.44,557.97,0.35844221]
[1741554679355,1.218,558.45,557.98,0.29708768]
[1741554679654,1.218,558.45,557.99,0.35842936]
[1741554679859,1.218,558.45,558.0,0.29708768]
[1741554680454,0.31170367,558.44,558.0,0.29708768]
[1741554681061,0.31170367,558.44,558.01,0.35841651]
[1741554681262,0.31170367,558.44,558.02,0.29708768]
[1741554681456,0.31170367,558.44,558.03,0.35840367]
[1741554682360,1.218,558.45,558.03,0.35840367]
[1741554682959,1.218,558.45,558.04,0.29708431]